bitfinex/quotes_SOLUSD_20250417
["timestamp","ask_amount","ask_price","bid_price","bid_amount"]
[1744897740209,0.063,133.08,133.05,26.0]
[1744897740709,0.063,133.08,133.07,18.95683607]
[1744897741015,0.063,133.08,133.07,37.91367214]
[1744897741407,0.063,133.08,133.07,56.84764414]
[1744897742193,0.063,133.08,133.07,64.36248595]
[1744897742818,0.063,133.08,133.07,26.75600102]
[1744897746713,0.063,133.08,133.07,45.71283709]
[1744897748328,0.063,133.08,133.07,26.47167788]
[1744897748500,0.063,133.08,133.07,26.75600102]
[1744897750604,0.063,133.08,133.07,45.71283709]
[1744897754255,0.063,133.08,133.07,7.51484181]
[1744897754549,0.063,133.08,133.07,61.51283709]
[1744897756054,84.3812,133.07,133.0,7.58159862]
[1744897756220,18.95683607,133.05,133.01,18.95683607]
[1744897756418,26.47337245,133.04,133.0,0.063]
[1744897756724,107.83813607,133.03,133.0,0.063]
[1744897757944,18.95683607,133.01,133.0,0.063]
[1744897758449,7.51823171,133.01,133.0,0.063]
[1744897759552,26.47506778,133.01,133.0,0.063]
[1744897759851,27.98326778,133.01,133.0,0.063]
[1744897761142,1.5082,133.01,133.0,45.01983607]
[1744897761332,32.55572767,133.03,133.0,26.063]
[1744897761528,18.95683607,133.02,133.0,0.063]
[1744897761961,18.95683607,133.02,133.0,26.063]
[1744897762753,26.47506778,133.01,133.0,26.063]
[1744897763846,26.47506778,133.01,133.0,0.063]
[1744897764253,26.47506778,133.01,133.0,26.063]
[1744897765068,26.47463338,133.02,133.0,26.063]
[1744897766470,7.51664936,133.04,133.0,19.01983607]
[1744897767659,26.47348543,133.04,133.0,19.01983607]
[1744897768049,25.27633607,133.07,133.03,18.95683607]
[1744897768251,25.27633607,133.07,133.0,7.58165405]
[1744897768252,1.6234,133.08,133.04,18.95683607]
[1744897768655,0.063,133.08,133.05,18.95683607]
[1744897769452,0.063,133.08,133.06,18.95683607]
[1744897769677,0.063,133.08,133.07,19.24115921]
[1744897770566,0.063,133.08,133.06,26.0]
[1744897770766,0.063,133.08,133.07,18.95683607]
[1744897771278,0.063,133.08,133.07,26.47167788]
[1744897771960,0.063,133.08,133.07,26.75600102]
[1744897773567,0.063,133.08,133.07,64.36248595]
[1744897775349,0.063,133.08,133.07,26.75600102]
[1744897775747,0.063,133.08,133.07,45.24115921]
[1744897776469,0.063,133.08,133.07,44.95683607]
[1744897776674,0.063,133.08,133.05,0.14216157]
[1744897776865,0.063,133.08,133.07,26.0]
[1744897777269,0.063,133.08,133.07,44.95683607]
[1744897779755,0.063,133.08,133.07,45.24115921]
[1744897780672,0.063,133.08,133.07,44.95683607]
[1744897780973,0.063,133.08,133.07,45.24115921]
[1744897781575,0.063,133.08,133.07,44.95683607]
[1744897782872,0.063,133.08,133.07,18.95683607]
[1744897785071,0.063,133.08,133.06,23.25492133]
[1744897785072,0.063,133.08,133.05,7.5155956]
[1744897785276,0.063,133.08,133.06,18.95683607]
[1744897785579,0.063,133.08,133.07,44.95683607]
[1744897786466,0.063,133.08,133.07,52.47167788]
[1744897787073,0.063,133.08,133.07,52.75600102]
[1744897788580,0.063,133.08,133.07,52.47167788]
[1744897788885,0.063,133.08,133.07,52.75600102]
[1744897790781,0.063,133.08,133.07,71.40564988]
[1744897791083,0.063,133.08,133.07,90.36248595]
[1744897793202,0.063,133.09,133.07,90.36248595]
[1744897793488,0.063,133.09,133.08,18.95683607]
[1744897795412,0.03,133.11,133.08,45.40508519]
[1744897795591,0.03,133.14,133.12,26.0]
[1744897795773,0.03,133.14,133.13,18.95683607]
[1744897797186,0.03,133.14,133.12,44.95683607]
[1744897797386,0.03,133.14,133.13,18.95683607]
[1744897797888,0.03,133.14,133.09,23.23343024]
[1744897798061,82.83,133.14,133.09,23.23343024]
[1744897798266,82.83,133.14,133.11,18.95683607]
[1744897798970,82.83,133.14,133.13,18.95683607]
[1744897799175,0.03,133.14,133.13,18.95683607]
[1744897799596,0.03,133.14,133.13,19.24115921]
[1744897799806,0.03,133.14,133.13,18.95683607]
[1744897800183,0.03,133.14,133.13,26.46829103]
[1744897800510,0.03,133.14,133.13,26.75261417]
[1744897801109,0.03,133.14,133.13,18.95683607]
[1744897801313,0.03,133.14,133.09,15.72]
[1744897801512,0.03,133.14,133.08,15.72]
[1744897801805,18.95683607,133.12,133.08,15.72]
[1744897801991,18.95683607,133.12,133.08,34.67683607]
[1744897802509,84.4453,133.13,133.09,18.95683607]
[1744897802715,84.4453,133.13,133.11,18.95683607]
[1744897802878,82.8,133.13,133.12,18.95683607]
[1744897803211,0.03,133.14,133.12,18.95683607]
[1744897803416,0.03,133.14,133.11,26.0]
[1744897803589,0.03,133.14,133.13,18.95683607]
[1744897803787,0.03,133.14,133.13,26.46829103]
[1744897804403,0.03,133.14,133.13,26.75261417]
[1744897804680,0.03,133.14,133.13,52.75261417]
[1744897805103,0.03,133.14,133.13,26.0]
[1744897805307,0.03,133.14,133.13,44.95683607]
[1744897805611,0.03,133.14,133.13,52.46829103]
[1744897805810,0.03,133.14,133.13,52.75261417]
[1744897806386,0.03,133.14,133.13,68.47261417]
[1744897806914,0.03,133.14,133.13,60.67683607]
[1744897807085,0.03,133.14,133.13,41.72]
[1744897807290,0.03,133.14,133.13,60.67683607]
[1744897807507,0.03,133.14,133.13,68.18829103]
[1744897808005,0.03,133.14,133.13,60.67683607]
[1744897808391,0.03,133.14,133.13,68.18829103]
[1744897808782,0.03,133.14,133.13,42.47261417]
[1744897810783,0.03,133.14,133.13,61.12226303]
[1744897811702,0.03,133.14,133.13,23.5157781]
[1744897812006,0.03,133.14,133.13,68.47261417]
[1744897812209,0.03,133.14,133.13,42.47261417]
[1744897812403,0.03,133.14,133.13,15.72]
[1744897812991,0.03,133.14,133.13,42.47261417]
[1744897813314,0.03,133.14,133.13,61.12226303]
[1744897813613,0.03,133.14,133.13,68.18829103]
[1744897814298,0.03,133.14,133.13,68.47261417]
[1744897814499,0.03,133.14,133.13,41.72]
[1744897814700,0.03,133.14,133.13,26.0]
[1744897815095,0.03,133.14,133.13,52.46829103]
[1744897815304,0.03,133.14,133.13,52.75261417]
[1744897815812,0.03,133.14,133.13,52.46829103]
[1744897815991,0.03,133.14,133.13,26.0]
[1744897816189,0.03,133.14,133.13,44.95683607]
[1744897816407,0.03,133.14,133.13,26.0]
[1744897818196,18.98683607,133.14,133.11,15.7]
[1744897818390,0.03,133.14,133.11,15.7]
[1744897818599,18.98683607,133.14,133.13,26.0]
[1744897820422,26.49772686,133.14,133.13,26.0]
[1744897820922,26.49772686,133.14,133.11,15.7]
[1744897821308,101.75683607,133.13,133.08,26.47095539]
[1744897821507,101.75683607,133.13,133.09,26.0]
[1744897821704,101.75683607,133.13,133.08,26.47095539]
[1744897821894,82.8,133.13,133.09,18.95683607]
[1744897822098,82.8,133.13,133.11,18.95683607]
[1744897822307,0.03,133.14,133.11,18.95683607]
[1744897822506,0.03,133.14,133.12,18.95683607]
[1744897822706,0.03,133.14,133.13,26.0]
[1744897822902,0.03,133.14,133.13,44.95683607]
[1744897823107,0.03,133.14,133.13,26.0]
[1744897823325,0.03,133.14,133.12,41.7]
[1744897824523,18.98683607,133.14,133.07,18.78602235]
[1744897824716,18.95683607,133.1,133.05,0.063]
[1744897824898,20.48723607,133.06,133.05,0.063]
[1744897825095,103.28723607,133.06,133.05,0.063]
[1744897825320,18.64964886,133.03,133.0,11.8517824]
[1744897825625,18.95683607,133.01,132.99,8.5185824]
[1744897825921,18.95683607,133.0,132.99,8.5185824]
[1744897826506,26.47563306,133.0,132.99,8.5185824]
[1744897827221,68.32153365,133.0,132.99,8.5185824]
[1744897827426,37.92016532,133.0,132.99,8.5185824]
[1744897827722,68.32153365,133.0,132.99,8.5185824]
[1744897827916,68.32153365,133.0,132.97,0.063]
[1744897828115,30.40136833,132.98,132.97,0.063]
[1744897828906,56.85526813,132.98,132.97,0.063]
[1744897829115,62.87856813,132.98,132.97,0.063]
[1744897829508,0.28432314,132.97,132.94,0.063]
[1744897829719,30.40136833,132.95,132.94,0.063]
[1744897831724,82.8,132.97,132.94,30.46436833]
[1744897832320,113.20136833,132.97,132.94,0.063]
[1744897833233,82.8,132.97,132.94,0.063]
[1744897833733,82.8,132.97,132.94,30.46436833]
[1744897833930,82.8,133.0,132.96,56.40136833]
[1744897834115,82.8,133.0,132.97,30.40136833]
[1744897834315,82.8,133.0,132.98,30.40136833]
[1744897834927,82.8,133.0,132.97,37.92130889]
[1744897835535,82.8,133.0,132.98,30.40136833]
[1744897835716,82.8,133.0,132.97,37.92130889]
[1744897835911,82.8,133.0,132.98,30.40136833]
[1744897836232,82.8,133.0,132.99,30.40136833]
[1744897836815,113.20136833,133.03,132.98,30.40136833]
[1744897837012,82.8,133.03,132.99,37.92073068]
[1744897837212,6.1209,133.09,133.02,56.40136833]
[1744897837420,6.1209,133.09,133.06,30.40136833]
[1744897837629,6.1209,133.09,133.03,26.0]
[1744897837838,36.52226833,133.09,133.04,30.40136833]
[1744897838626,90.31223369,133.12,133.06,30.40136833]
[1744897838823,30.40136833,133.08,133.03,26.0]
[1744897839028,30.40136833,133.08,133.03,56.40136833]
[1744897839326,0.03,133.06,133.05,26.0]
[1744897839533,0.03,133.06,133.05,56.40136833]
[1744897840547,30.43136833,133.06,133.04,26.0]
[1744897840834,0.03,133.06,133.04,26.0]
[1744897842533,0.03,133.06,133.04,30.40136833]
[1744897843136,0.03,133.06,133.05,26.0]
[1744897844029,0.03,133.06,133.03,30.40136833]
[1744897844224,0.03,133.06,133.04,30.40136833]
[1744897844425,0.03,133.06,133.05,30.40136833]
[1744897845449,0.03,133.06,133.05,30.68569147]
[1744897845646,0.03,133.06,133.05,38.2016629]
[1744897847445,0.03,133.06,133.05,58.44621176]
[1744897847830,82.83,133.14,133.06,18.933972]
[1744897848023,82.83,133.14,133.1,30.40136833]
[1744897848220,90.34098496,133.14,133.08,26.0]
[1744897848425,30.40136833,133.11,133.08,26.0]
[1744897849650,90.31170781,133.13,133.08,30.40136833]
[1744897849849,120.71307614,133.13,133.08,56.40136833]
[1744897850528,82.8,133.13,133.09,30.40136833]
[1744897850729,82.8,133.13,133.08,33.51420257]
[1744897851026,82.8,133.13,133.1,30.40136833]
[1744897851726,82.8,133.13,133.06,0.28432314]
[1744897851727,30.40136833,133.11,133.06,0.28432314]
[1744897851937,30.40136833,133.11,133.06,30.68569147]
[1744897852327,30.40136833,133.11,133.07,26.0]
[1744897852529,30.40136833,133.11,133.07,56.40136833]
[1744897853050,30.40136833,133.09,133.02,7.9903]
[1744897853346,7.51264231,133.11,132.99,6.6309]
[1744897853347,88.8676,133.08,132.99,6.6309]
[1744897853523,119.26896833,133.08,133.05,26.0]
[1744897853723,82.8,133.08,133.05,26.0]
[1744897854040,82.8,133.08,133.05,56.40136833]
[1744897854239,113.20136833,133.1,133.05,56.40136833]
[1744897854553,82.8,133.1,133.06,30.40136833]
[1744897855050,96.7371271,133.12,133.08,30.40136833]
[1744897855236,127.13849543,133.12,133.08,30.40136833]
[1744897855435,89.2251,133.12,133.08,30.40136833]
[1744897855656,96.73718473,133.12,133.08,30.40136833]
[1744897856033,82.8,133.12,133.08,30.40136833]
[1744897856549,90.31208098,133.12,133.08,30.40136833]
[1744897856736,30.40136833,133.11,133.05,27.517]
[1744897856935,30.40136833,133.11,133.06,30.40136833]
[1744897857146,37.91414707,133.11,133.06,37.91676182]
[1744897857450,37.91414707,133.11,133.07,30.40136833]
[1744897857641,7.51277874,133.11,133.07,30.40136833]
[1744897857958,90.31226565,133.12,133.08,30.40136833]
[1744897858757,90.31226565,133.12,133.09,30.40136833]
[1744897859060,82.8,133.12,133.09,30.40136833]
[1744897859262,90.31202881,133.12,133.09,30.40136833]
[1744897859870,30.43136833,133.14,133.11,56.40136833]
[1744897859871,0.03,133.14,133.11,56.40136833]
[1744897860078,0.03,133.14,133.13,30.40136833]
[1744897860440,0.03,133.14,133.13,30.68569147]
[1744897860775,0.03,133.14,133.13,49.33534033]
[1744897860942,0.03,133.14,133.13,86.15590866]
[1744897861141,0.03,133.14,133.13,55.75454033]
[1744897861364,0.03,133.19,133.16,26.0]
[1744897861544,0.03,133.19,133.18,30.40136833]
[1744897861741,0.03,133.19,133.18,56.68569147]
[1744897863252,0.03,133.19,133.18,64.1943264]
[1744897863452,0.03,133.19,133.18,56.84397526]
[1744897863652,0.03,133.2,133.19,1.81032314]
[1744897863965,0.03,133.2,133.19,56.68569147]
[1744897865267,0.03,133.2,133.19,56.40136833]
[1744897865972,0.03,133.2,133.19,82.8434115]
[1744897866851,0.03,133.22,133.2,18.933972]
[1744897867058,0.03,133.22,133.21,61.0870598]
[1744897868369,0.03,133.24,133.22,18.933972]
[1744897868548,0.03,133.24,133.23,66.79234033]
[1744897870362,0.03,133.24,133.23,25.24714014]
[1744897870568,0.03,133.24,133.23,55.5063469]
[1744897870859,0.03,133.24,133.23,53.99150847]
[1744897871071,0.03,133.24,133.23,72.64115733]
[1744897872455,0.03,133.26,133.24,18.933972]
[1744897872656,0.03,133.29,133.28,61.0870598]
[1744897872860,0.03,133.29,133.28,76.9870598]
[1744897873257,0.03,133.29,133.28,95.63670866]
[1744897873574,0.03,133.29,133.28,97.23870866]
[1744897874268,0.03,133.29,133.28,104.74170986]
[1744897875361,0.03,133.29,133.28,74.34034153]
[1744897875676,0.03,133.29,133.28,104.74170986]
[1744897876846,0.03,133.32,133.29,18.933972]
[1744897877075,0.03,133.32,133.29,49.33534033]
[1744897878378,0.03,133.32,133.29,56.83777862]
[1744897879486,0.03,133.32,133.29,30.68569147]
[1744897879655,0.03,133.32,133.29,26.0]
[1744897879969,0.03,133.32,133.29,30.40136833]
[1744897880151,0.03,133.32,133.29,30.68569147]
[1744897880347,0.03,133.32,133.29,56.68569147]
[1744897880548,0.03,133.32,133.29,64.04596819]
[1744897880847,0.03,133.32,133.29,56.5435299]
[1744897881051,0.03,133.32,133.29,56.40136833]
[1744897881350,0.03,133.32,133.29,56.68569147]
[1744897881551,0.03,133.32,133.29,64.18812976]
[1744897881755,0.03,133.32,133.29,38.18812976]
[1744897882253,0.03,133.32,133.29,26.43641029]
[1744897882456,0.03,133.32,133.29,30.68569147]
[1744897882960,0.03,133.32,133.29,26.0]
[1744897883161,30.43136833,133.31,133.28,15.9]
[1744897883363,30.43136833,133.3,133.28,15.9]
[1744897883668,30.43136833,133.3,133.25,30.40136833]
[1744897883976,30.40136833,133.27,133.21,23.3867592]
[1744897884160,30.40136833,133.27,133.26,26.0]
[1744897884363,113.23136833,133.3,133.25,30.40136833]
[1744897884558,82.83,133.3,133.26,30.40136833]
[1744897885276,0.03,133.3,133.27,56.40136833]
[1744897886486,0.03,133.3,133.29,0.28432314]
[1744897886679,0.03,133.3,133.29,30.68569147]
[1744897888178,0.03,133.3,133.29,0.28432314]
[1744897888483,0.03,133.3,133.29,30.68569147]
[1744897890178,0.03,133.3,133.29,56.68569147]
[1744897891980,0.03,133.3,133.29,26.28432314]
[1744897892285,0.03,133.3,133.29,56.68569147]
[1744897894309,0.03,133.3,133.29,38.18812976]
[1744897895294,0.03,133.3,133.29,26.67710993]
[1744897895961,0.03,133.3,133.29,26.0]
[1744897896165,101.7203485,133.3,133.26,15.88]
[1744897896396,82.83,133.3,133.23,26.39604906]
[1744897896583,18.8903485,133.28,133.23,26.39604906]
[1744897896765,82.83,133.3,133.26,44.8903485]
[1744897896971,101.7203485,133.3,133.26,26.0]
[1744897897161,18.8903485,133.29,133.26,26.0]
[1744897897598,26.39286293,133.29,133.26,26.0]
[1744897898270,82.83,133.3,133.26,52.39440529]
[1744897898472,82.83,133.3,133.26,44.8903485]
[1744897898667,0.03,133.3,133.29,26.0]
[1744897898889,26.42222396,133.3,133.23,0.28432314]
[1744897899198,120.58207189,133.3,133.27,26.0]
[1744897899361,90.33187546,133.3,133.27,26.0]
[1744897899567,120.58207189,133.3,133.27,26.0]
[1744897900513,120.58207189,133.3,133.25,26.0]
[1744897900514,30.25019643,133.28,133.25,26.0]
[1744897901207,30.25019643,133.29,133.25,26.0]
[1744897901577,120.58207189,133.3,133.25,56.25019643]
[1744897901789,120.58207189,133.3,133.25,26.0]
[1744897901965,90.33187546,133.3,133.26,30.25019643]
[1744897902172,90.33187546,133.3,133.27,30.25019643]
[1744897902371,90.33187546,133.3,133.26,30.25019643]
[1744897902573,82.83,133.3,133.28,26.0]
[1744897902790,82.83,133.3,133.29,26.0]
[1744897903205,0.03,133.3,133.29,26.0]
[1744897903496,0.03,133.3,133.29,63.75263472]
[1744897903701,0.03,133.3,133.29,64.03695786]
[1744897905291,0.03,133.3,133.29,63.75263472]
[1744897905779,0.03,133.3,133.28,37.75297891]
[1744897906104,0.03,133.3,133.29,56.25019643]
[1744897906476,0.03,133.3,133.29,56.53451957]
[1744897906788,0.03,133.3,133.29,26.0]
[1744897907092,0.03,133.3,133.28,37.75297891]
[1744897908109,0.03,133.3,133.29,26.0]
[1744897908610,0.03,133.3,133.27,46.11019643]
[1744897908909,0.03,133.3,133.29,26.0]
[1744897909712,0.03,133.3,133.29,56.25019643]
[1744897910283,0.03,133.3,133.29,26.0]
[1744897910706,0.03,133.3,133.29,56.25019643]
[1744897911018,0.03,133.3,133.29,26.0]
[1744897912483,0.03,133.3,133.27,15.86]
[1744897912902,30.25019643,133.28,133.23,15.903]
[1744897913087,30.25019643,133.27,133.24,26.0]
[1744897913289,30.25019643,133.27,133.23,46.15319643]
[1744897913487,30.25019643,133.27,133.24,26.0]
[1744897913793,30.25019643,133.26,133.23,0.063]
[1744897914116,30.25019643,133.24,133.23,0.063]
[1744897914314,113.05019643,133.25,133.23,26.063]
[1744897914619,82.8,133.25,133.23,0.063]
[1744897915295,113.05019643,133.25,133.23,0.063]
[1744897915533,82.8,133.25,133.23,0.063]
[1744897915688,113.05019643,133.25,133.23,0.063]
[1744897915891,37.7554501,133.24,133.23,0.063]
[1744897920507,7.5048468,133.25,133.23,0.063]
[1744897920824,37.75504323,133.25,133.23,0.063]
[1744897921004,37.75455316,133.26,133.23,0.063]
[1744897921205,30.25019643,133.24,133.23,0.063]
[1744897922022,37.7554501,133.24,133.23,0.063]
[1744897924533,7.50412726,133.26,133.23,0.063]
[1744897924713,30.25019643,133.24,133.23,0.063]
[1744897924915,7.50412726,133.26,133.23,0.063]
[1744897925314,30.25019643,133.25,133.23,0.063]
[1744897925816,7.50525367,133.24,133.23,0.063]
[1744897926027,37.7554501,133.24,133.23,0.063]
[1744897926335,7.50525367,133.24,133.23,0.063]
[1744897926541,82.8,133.27,133.23,0.063]
[1744897926726,113.05019643,133.27,133.23,0.063]
[1744897927229,7.53215672,133.3,133.26,30.25019643]
[1744897927527,0.03,133.3,133.26,30.25019643]
[1744897927830,0.03,133.3,133.27,30.25019643]
[1744897927831,7.53197743,133.3,133.27,30.25019643]
[1744897928215,0.03,133.3,133.26,0.28432314]
[1744897928414,0.03,133.3,133.29,30.25019643]
[1744897929214,0.03,133.3,133.29,30.53451957]
[1744897929623,0.03,133.3,133.29,38.03695786]
[1744897931230,0.03,133.3,133.27,0.28432314]
[1744897931427,0.03,133.3,133.29,26.0]
[1744897931817,0.03,133.3,133.27,26.0]
[1744897932017,0.03,133.3,133.27,30.25019643]
[1744897932218,0.03,133.3,133.25,0.14216157]
[1744897932530,0.03,133.3,133.27,26.0]
[1744897933535,30.25019643,133.29,133.24,15.78]
[1744897933711,7.50295089,133.29,133.25,56.25019643]
[1744897934438,7.53212111,133.3,133.26,30.25019643]
[1744897934747,37.78231754,133.3,133.25,56.25019643]
[1744897935338,7.53212111,133.3,133.28,26.0]
[1744897935538,0.03,133.3,133.28,56.25019643]
[1744897935833,7.53192233,133.3,133.28,26.0]
[1744897936834,0.03,133.3,133.28,26.0]
[1744897937513,0.03,133.3,133.29,18.90151779]
[1744897937913,0.03,133.3,133.28,44.90151779]
[1744897938120,0.03,133.3,133.29,44.90151779]
[1744897938331,0.03,133.3,133.29,26.0]
[1744897939030,0.03,133.3,133.24,34.54300486]
[1744897939350,0.03,133.3,133.27,44.90151779]
[1744897940010,18.90151779,133.28,133.23,0.063]
[1744897940216,18.90151779,133.24,133.23,0.063]
[1744897940822,18.90151779,133.24,133.21,0.063]
[1744897941017,18.90151779,133.22,133.21,0.063]
[1744897941339,37.55116665,133.22,133.21,0.063]
[1744897941520,45.05754707,133.22,133.21,0.063]
[1744897942423,45.05754707,133.22,133.2,0.063]
[1744897942620,120.35116665,133.21,133.2,0.063]
[1744897943224,48.95244625,133.21,133.2,0.063]
[1744897943422,85.33834364,133.21,133.2,1e-08]
[1744897943643,92.84528756,133.21,133.2,1e-08]
[1744897944425,94.12961069,133.21,133.2,1e-08]
[1744897944841,18.933972,133.2,133.15,0.063]
[1744897945042,30.30279739,133.16,133.15,0.063]
[1744897945558,56.46220894,133.16,133.15,0.063]
[1744897945740,18.64964886,133.15,133.13,0.063]
[1744897945914,30.30279739,133.14,133.13,0.063]
[1744897946338,18.64964886,133.15,133.13,0.063]
[1744897946643,48.95244625,133.14,133.13,1e-08]
[1744897948538,37.81368818,133.14,133.13,1e-08]
[1744897949043,56.46333704,133.14,133.13,1e-08]
[1744897951937,86.76613443,133.14,133.13,1e-08]
[1744897952142,87.05045757,133.14,133.13,1e-08]
[1744897953652,56.74766018,133.14,133.13,1e-08]
[1744897953831,56.46333704,133.14,133.13,1e-08]
[1744897955848,93.52225757,133.14,133.13,1e-08]
[1744897956330,94.52225756,133.14,133.13,1e-08]
[1744897956950,93.52225757,133.14,133.13,1e-08]
[1744897957449,94.52225756,133.14,133.13,1e-08]
[1744897957653,93.52225757,133.14,133.13,1e-08]
[1744897957855,63.21946018,133.14,133.13,1e-08]
[1744897958046,93.52225757,133.14,133.13,1e-08]
[1744897958549,0.28432314,133.12,133.09,0.063]
[1744897958754,48.95244625,133.1,133.09,0.063]
[1744897960048,48.95244625,133.1,133.08,0.063]
[1744897960251,113.10279739,133.09,133.08,0.063]
[1744897960441,30.30279739,133.09,133.08,0.063]
[1744897961443,37.81650991,133.09,133.08,0.063]
[1744897961755,56.75048191,133.09,133.08,1e-08]
[1744897964545,56.75048191,133.09,133.07,0.063]
[1744897964546,18.933972,133.08,133.07,1e-08]
[1744897964739,49.23676939,133.08,133.07,1e-08]
[1744897965243,37.91327561,133.08,133.07,1e-08]
[1744897966245,18.97930361,133.08,133.07,1e-08]
[1744897966557,45.42755273,133.08,133.07,1e-08]
[1744897968158,64.40685634,133.08,133.07,1e-08]
[1744897968359,70.57429392,133.08,133.07,1e-08]
[1744897968561,74.42120801,133.08,133.07,1e-08]
[1744897968744,68.25377043,133.08,133.07,1e-08]
[1744897969766,0.28432314,133.06,133.02,0.03]
[1744897970065,18.97930361,133.03,133.02,0.03]
[1744897970369,37.91327561,133.03,133.0,0.063]
[1744897970738,37.62895247,133.01,133.0,0.063]
[1744897971847,45.14718418,133.01,133.0,0.063]
[1744897972363,90.31782339,133.02,133.0,0.063]
[1744897972766,82.8,133.02,133.0,0.063]
[1744897973266,90.31679942,133.04,133.0,19.04230361]
[1744897973764,109.29610303,133.04,133.0,0.063]
[1744897974145,82.8,133.04,133.0,19.04230361]
[1744897974456,82.8,133.04,133.01,18.97930361]
[1744897977554,109.29585518,133.04,133.0,0.063]
[1744897979769,90.31655157,133.04,133.0,19.04230361]
[1744897980273,90.31655157,133.04,133.01,18.97930361]
[1744897980468,82.8,133.04,133.01,26.0]
[1744897980670,82.8,133.1,133.04,0.28432314]
[1744897980854,82.8,133.1,133.07,18.97930361]
[1744897981169,18.64964886,133.07,133.03,1.5934]
[1744897981350,26.29799383,133.09,133.03,20.57270361]
[1744897981548,7.51371252,133.09,133.05,44.97930361]
[1744897981750,45.27729744,133.09,133.05,26.0]
[1744897982174,7.51371252,133.09,133.05,44.97930361]
[1744897982374,18.97930361,133.08,133.03,46.57270361]
[1744897982554,7.51484181,133.07,133.03,46.57270361]
[1744897982756,26.49414542,133.07,133.03,27.5934]
[1744897983157,7.51484181,133.07,133.03,46.57270361]
[1744897983354,7.51484181,133.07,133.04,18.97930361]
[1744897983849,37.62895247,133.06,133.03,1.5934]
[1744897984175,18.97930361,133.04,133.0,1.669]
[1744897984550,7.5171014,133.03,133.0,1.669]
[1744897985772,7.5171014,133.03,133.0,20.64830361]
[1744897985978,7.51683368,133.04,133.01,18.97930361]
[1744897986364,7.51683368,133.04,133.02,18.97930361]
[1744897986768,7.51597143,133.05,133.02,18.97930361]
[1744897988572,7.51484181,133.07,133.03,18.97930361]
[1744897989380,90.31453415,133.08,133.04,18.97930361]
[1744897989581,7.51342604,133.1,133.07,18.97930361]
[1744897989760,7.51342604,133.1,133.08,18.97930361]
[1744897990063,7.51342604,133.1,133.06,52.73210361]
[1744897990262,7.51342604,133.1,133.06,33.7528]
[1744897990465,7.51342604,133.1,133.07,18.97930361]
[1744897990780,7.51342604,133.1,133.06,52.73210361]
[1744897990982,7.51342604,133.1,133.07,18.97930361]
[1744897991162,18.78119081,133.12,133.09,18.97930361]
[1744897991163,7.51230219,133.12,133.09,18.97930361]
[1744897991362,18.84049343,133.14,133.11,18.97930361]
[1744897991363,0.063,133.14,133.11,18.97930361]
[1744897991863,0.063,133.14,133.1,18.97930361]
[1744897992459,7.574128,133.14,133.1,18.97930361]
[1744897993575,0.063,133.14,133.12,18.97930361]
[1744897993781,0.063,133.14,133.11,18.97930361]
[1744897993963,19.04230361,133.14,133.11,26.0]
[1744897994357,0.063,133.14,133.11,26.0]
[1744897994763,19.04230361,133.14,133.09,45.26362675]
[1744897995174,0.063,133.14,133.1,18.97930361]
[1744897995373,0.063,133.14,133.12,18.97930361]
[1744897995582,0.063,133.14,133.13,18.97930361]
[1744897995966,0.063,133.14,133.12,44.97930361]
[1744897996482,19.04230361,133.14,133.12,26.0]
[1744897996858,7.51145496,133.13,133.12,26.0]
[1744897997058,7.51145496,133.13,133.09,19.12146518]
[1744897997257,7.51145496,133.13,133.11,26.0]
[1744897997497,26.55343432,133.14,133.11,26.0]
[1744897997688,7.57413071,133.14,133.11,44.97930361]
[1744897999885,18.97930361,133.13,133.11,26.0]